bitfinex-derivatives/quotes_BTCF0:USTF0_20210406
["timestamp","ask_amount","ask_price","bid_price","bid_amount"]
[1617688611019,4.28205351,58869.0,58868.0,0.27]
[1617688611722,4.88400161,58869.0,58868.0,0.27]
[1617688614625,5.37534627,58869.0,58868.0,0.27]
[1617688615426,4.88400161,58869.0,58868.0,0.27]
[1617688620531,5.37713796,58869.0,58868.0,0.27]
[1617688621130,6.37713796,58869.0,58868.0,0.27]
[1617688622634,6.92848664,58869.0,58868.0,0.27]
[1617688623236,7.4903614,58869.0,58868.0,0.27]
[1617688623636,6.92848664,58869.0,58868.0,0.27]
[1617688624034,7.49037192,58869.0,58868.0,0.27]
[1617688624438,6.93902324,58869.0,58868.0,0.27]
[1617688627240,7.48912036,58869.0,58868.0,0.27]
[1617688628038,6.93902324,58869.0,58868.0,0.27]
[1617688628538,7.48907877,58869.0,58868.0,0.27]
[1617688628940,6.93902324,58869.0,58868.0,0.27]
[1617688629239,7.48879407,58869.0,58868.0,0.27]
[1617688632044,6.93902324,58869.0,58868.0,0.27]
[1617688633144,5.93902324,58869.0,58868.0,0.27]
[1617688633345,6.93902324,58869.0,58868.0,0.27]
[1617688639057,7.48814632,58869.0,58868.0,0.27]
[1617688639357,7.68814632,58869.0,58868.0,0.27]
[1617688639559,9.18814632,58869.0,58868.0,0.27]
[1617688639760,9.18814632,58869.0,58857.0,0.27]
[1617688639961,0.10725655,58858.0,58857.0,0.27]
[1617688640158,0.23093655,58858.0,58856.0,0.525]
[1617688640359,1.23093655,58858.0,58857.0,0.27]
[1617688640562,4.56708962,58858.0,58857.0,0.27]
[1617688640860,6.29223749,58858.0,58857.0,0.27]
[1617688641061,8.15351441,58858.0,58857.0,0.2658]
[1617688641462,8.71553076,58858.0,58857.0,0.2658]
[1617688641862,7.21553076,58858.0,58857.0,0.2658]
[1617688643565,3.96293076,58858.0,58857.0,0.2658]
[1617688643765,8.59833076,58858.0,58857.0,0.2658]
[1617688644167,9.14613653,58858.0,58857.0,0.2658]
[1617688644566,8.59833076,58858.0,58857.0,0.2658]
[1617688645667,8.59833076,58858.0,58857.0,0.2149]
[1617688646366,6.09833076,58858.0,58857.0,0.2149]
[1617688646767,7.64484595,58858.0,58857.0,0.2149]
[1617688647167,6.53631441,58858.0,58857.0,0.2149]
[1617688647467,7.09836185,58858.0,58857.0,0.2149]
[1617688649569,7.59836185,58858.0,58857.0,0.2149]
[1617688649869,8.59836185,58858.0,58857.0,0.2149]
[1617688650072,8.59836185,58858.0,58857.0,0.21389635]
[1617688650370,7.59836185,58858.0,58857.0,0.21389635]
[1617688650569,8.59836185,58858.0,58857.0,0.21389635]
[1617688652773,8.59836185,58858.0,58857.0,0.20769635]
[1617688653473,9.14502743,58858.0,58857.0,0.20769635]
[1617688654272,8.59836185,58858.0,58857.0,0.20769635]
[1617688654875,8.64906185,58858.0,58857.0,0.20769635]
[1617688657178,8.59836185,58858.0,58857.0,0.20769635]
[1617688659978,8.59836185,58858.0,58857.0,0.20579635]
[1617688661779,8.59836185,58858.0,58857.0,0.20039635]
[1617688663181,8.64986185,58858.0,58857.0,0.20039635]
[1617688663482,8.59836185,58858.0,58857.0,0.19389635]
[1617688663681,8.59836185,58858.0,58857.0,0.19289268]
[1617688667484,3.96296185,58858.0,58857.0,0.31512268]
[1617688667689,3.83928185,58858.0,58857.0,0.31512268]
[1617688668385,2.91595749,58858.0,58857.0,0.31512268]
[1617688668787,3.27725988,58858.0,58857.0,0.31512268]
[1617688669187,2.91595749,58858.0,58857.0,0.31512268]
[1617688669487,2.91595749,58858.0,58857.0,0.19289268]
[1617688670588,5.77275749,58858.0,58857.0,0.19289268]
[1617688670792,5.82415749,58858.0,58856.0,0.105]
[1617688670988,5.96788749,58858.0,58843.0,0.10725655]
[1617688671188,5.91648749,58858.0,58857.0,0.27]
[1617688671390,4.10778655,58858.0,58844.0,0.07]
[1617688671788,5.66772184,58858.0,58844.0,0.07]
[1617688671989,0.10725655,58845.0,58844.0,0.07]
[1617688672189,0.75064414,58845.0,58844.0,0.07]
[1617688672989,1.99152692,58845.0,58844.0,0.07]
[1617688675189,2.09913692,58845.0,58836.0,0.27]
[1617688675590,1.0,58841.0,58836.0,0.27]
[1617688675891,0.00983463,58837.0,58836.0,0.27]
[1617688676091,0.11709118,58837.0,58836.0,0.27]
[1617688676492,0.39941212,58837.0,58836.0,0.27]
[1617688676691,3.63631212,58837.0,58836.0,0.27]
[1617688676891,4.63631212,58837.0,58836.0,0.27]
[1617688677192,4.98724723,58837.0,58836.0,0.27]
[1617688677891,1.75034723,58837.0,58836.0,0.27]
[1617688678307,0.75034723,58837.0,58836.0,0.27]
[1617688678897,0.39941212,58837.0,58836.0,0.56984728]
[1617688679395,0.64030517,58837.0,58836.0,0.56984728]
[1617688679798,0.39941212,58837.0,58836.0,0.56984728]
[1617688683099,1.39941212,58837.0,58836.0,0.56984728]
[1617688684114,1.7505448,58837.0,58836.0,0.56984728]
[1617688685202,0.7505448,58837.0,58836.0,0.56984728]
[1617688686303,0.10725655,58837.0,58836.0,0.56984728]
[1617688686503,0.75160713,58837.0,58836.0,0.56984728]
[1617688687305,0.99250201,58837.0,58836.0,0.56984728]
[1617688688406,3.89190201,58837.0,58836.0,0.56984728]
[1617688689106,3.00665655,58837.0,58836.0,0.27]
[1617688689608,3.65076692,58837.0,58836.0,0.57000427]
[1617688689806,4.65076692,58837.0,58836.0,0.57000427]
[1617688692218,4.65076692,58837.0,58836.0,0.27]
[1617688693312,4.65076692,58837.0,58836.0,0.57001183]
[1617688693313,3.65076692,58837.0,58836.0,0.57001183]
[1617688695015,3.65076692,58837.0,58836.0,0.93081994]
[1617688695414,3.75229692,58837.0,58836.0,0.93081994]
[1617688695816,4.18231141,58837.0,58836.0,0.93081994]
[1617688696215,1.28291141,58837.0,58836.0,0.93081994]
[1617688697218,4.67320669,58837.0,58836.0,0.93081994]
[1617688697717,4.43231141,58837.0,58836.0,0.93081994]
[1617688697918,5.03455448,58837.0,58836.0,0.93081994]
[1617688698518,6.03455448,58837.0,58836.0,0.93081994]
[1617688698817,2.88515448,58837.0,58836.0,0.93081994]
[1617688699217,1.88515448,58837.0,58836.0,0.93081994]
[1617688699419,1.52380864,58837.0,58836.0,0.93081994]
[1617688700020,1.42227864,58837.0,58836.0,0.93081994]
[1617688704431,0.10725655,58837.0,58836.0,0.27]
[1617688704725,1.18275037,58837.0,58836.0,0.93155822]
[1617688705135,4.01855037,58837.0,58836.0,0.93155822]
[1617688705627,4.62079559,58837.0,58836.0,0.93155822]
[1617688706228,1.78499559,58837.0,58836.0,0.93155822]
[1617688706529,1.42364846,58837.0,58836.0,0.93155822]
[1617688707130,3.95464846,58837.0,58836.0,0.93155822]
[1617688711236,1.42364846,58837.0,58836.0,0.93155822]
[1617688711736,1.18275037,58837.0,58836.0,0.93155822]
[1617688712138,1.42364895,58837.0,58836.0,0.93155822]
[1617688716443,4.32834895,58837.0,58836.0,0.93155822]
[1617688722450,4.45953895,58837.0,58836.0,0.93155822]
[1617688723653,4.45953895,58837.0,58836.0,0.88155822]
[1617688726354,4.32834895,58837.0,58836.0,0.88155822]
[1617688732726,1.3163924,58837.0,58836.0,2.50335822]
[1617688732864,0.88621442,58837.0,58836.0,2.94464289]
[1617688733265,0.64531584,58837.0,58836.0,3.03497859]
[1617688734468,0.64531584,58837.0,58836.0,3.14223514]
[1617688735970,0.64531584,58837.0,58836.0,1.64223514]
[1617688736470,0.64531584,58837.0,58836.0,1.55189944]
[1617688742680,0.64531584,58837.0,58836.0,1.642233]
[1617688744082,0.64531584,58837.0,58836.0,3.142233]
[1617688744483,0.64531584,58837.0,58836.0,4.142233]
[1617688747787,0.29333427,58837.0,58836.0,4.142233]
[1617688750189,0.64546197,58837.0,58836.0,4.142233]
[1617688750389,0.64546197,58837.0,58836.0,3.142233]
[1617688750589,0.64546197,58837.0,58836.0,4.142233]
[1617688758001,0.29333427,58837.0,58836.0,4.142233]
[1617688762906,0.6454063,58837.0,58836.0,4.142233]
[1617688765216,0.29333427,58837.0,58836.0,4.142233]
[1617688767714,0.53422785,58837.0,58836.0,4.142233]
[1617688768214,0.29333427,58837.0,58836.0,4.142233]
[1617688775427,0.64667152,58837.0,58836.0,4.142233]
[1617688776325,0.29333427,58837.0,58836.0,4.142233]
[1617688777625,0.10725655,58841.0,58836.0,2.94905655]
[1617688778128,0.10725655,58841.0,58840.0,0.66120619]
[1617688778532,0.75513699,58841.0,58840.0,0.93120619]
[1617688778927,0.75513699,58841.0,58840.0,0.99142935]
[1617688779429,0.99602983,58841.0,58840.0,0.99142935]
[1617688788238,0.99602983,58841.0,58840.0,2.49142935]
[1617688788441,0.88877328,58841.0,58840.0,2.49142935]
[1617688788939,0.64788044,58841.0,58840.0,2.49142935]
[1617688789439,0.64788044,58841.0,58840.0,3.93224737]
[1617688791740,0.64788044,58841.0,58840.0,2.93224737]
[1617688792141,0.64788044,58841.0,58840.0,3.93224737]
[1617688792347,0.64788044,58841.0,58840.0,2.93224737]
[1617688792541,0.88876576,58841.0,58840.0,2.93224737]
[1617688792942,0.64788044,58841.0,58840.0,2.93224737]
[1617688793142,0.43240832,58842.0,58840.0,2.93224737]
[1617688793544,0.6485768,58841.0,58840.0,2.93224737]
[1617688793943,1.08089697,58841.0,58840.0,1.77]
[1617688794242,1.08089697,58841.0,58840.0,2.51225633]
[1617688800553,1.08089697,58841.0,58840.0,1.01225633]
[1617688801157,1.44224016,58841.0,58840.0,0.57091473]
[1617688802457,1.44224016,58841.0,58840.0,1.01238766]
[1617688804162,1.44224016,58841.0,58840.0,0.57091473]
[1617688808868,1.44224016,58841.0,58840.0,0.57088958]
[1617688810165,4.16374016,58841.0,58840.0,0.57088958]
[1617688812068,4.65440359,58841.0,58840.0,0.57088958]
[1617688813272,4.65440359,58841.0,58840.0,0.27]
[1617688813774,4.65440359,58841.0,58839.0,0.30089001]
[1617688813974,4.65440359,58841.0,58840.0,0.27]
[1617688815078,4.65440359,58841.0,58840.0,0.57089128]
[1617688815576,4.65440359,58841.0,58839.0,0.30089108]
[1617688815878,4.65440359,58841.0,58840.0,0.27]
[1617688816077,2.7215,58841.0,58840.0,0.27]
[1617688816275,2.7215,58841.0,58839.0,0.30089108]
[1617688816477,4.49951385,58841.0,58840.0,0.27]
[1617688816877,3.9374085,58841.0,58837.0,0.30089246]
[1617688817279,3.9374085,58841.0,58839.0,0.27]
[1617688817280,0.60225567,58840.0,58839.0,0.27]
[1617688817479,0.60225567,58840.0,58838.0,0.27]
[1617688817780,1.81793821,58840.0,58837.0,0.27]
[1617688818079,1.81793821,58840.0,58839.0,0.27]
[1617688818379,0.60225567,58840.0,58837.0,0.26]
[1617688818581,1.81780661,58840.0,58837.0,0.26]
[1617688818779,1.81780661,58840.0,58839.0,0.27]
[1617688818980,1.81780661,58840.0,58836.0,0.30089269]
[1617688819280,1.56861758,58838.0,58837.0,0.57085869]
[1617688819480,0.60225567,58840.0,58835.0,0.75680058]
[1617688819481,0.43081557,58837.0,58835.0,0.75680058]
[1617688819781,0.43081557,58837.0,58836.0,0.27]
[1617688819981,0.10725655,58843.0,58836.0,0.30039987]
[1617688819982,0.48966993,58842.0,58836.0,0.30039987]
[1617688820280,0.48966993,58842.0,58836.0,0.57039987]
[1617688820485,1.07738417,58837.0,58836.0,0.27]
[1617688821080,1.18464072,58837.0,58836.0,0.37725655]
[1617688821481,1.18464072,58837.0,58836.0,0.67765609]
[1617688821882,1.42553737,58837.0,58836.0,0.67765609]
[1617688822285,0.99460329,58837.0,58836.0,0.67765609]
[1617688822784,1.42508854,58837.0,58836.0,0.67765609]
[1617688823084,0.99460329,58837.0,58836.0,1.03813317]
[1617688828291,1.42494941,58837.0,58836.0,0.67765609]
[1617688828693,0.99460329,58837.0,58836.0,1.03813243]
[1617688829692,1.42482211,58837.0,58836.0,0.67765609]
[1617688830092,0.99460329,58837.0,58836.0,0.67765609]
[1617688830995,0.89004223,58837.0,58836.0,0.67765609]
[1617688831398,1.18336527,58837.0,58836.0,0.67765609]
[1617688831895,1.18336527,58837.0,58836.0,0.37725655]
[1617688832297,1.42426921,58837.0,58836.0,0.37725655]
[1617688833497,1.42426921,58837.0,58836.0,0.27]
[1617688834497,1.07166897,58837.0,58836.0,0.27]
[1617688834697,1.42376605,58837.0,58836.0,0.27]
[1617688837299,0.10725655,58837.0,58836.0,0.27]
[1617688838001,1.18317865,58837.0,58836.0,0.27]
[1617688838802,1.42408974,58837.0,58836.0,0.27]
[1617688840102,4.61208974,58837.0,58836.0,0.27]
[1617688840606,4.97345548,58837.0,58836.0,0.27]
[1617688842116,1.78545548,58837.0,58836.0,0.27]
[1617688849412,5.62105548,58837.0,58836.0,0.27]
[1617688850014,6.11011451,58837.0,58836.0,0.27]
[1617688855721,6.31011451,58837.0,58836.0,0.27]
[1617688856421,6.87229604,58837.0,58836.0,0.27]
[1617688859030,6.67229604,58837.0,58836.0,0.27]
[1617688859427,6.11011451,58837.0,58836.0,0.27]
[1617688864431,5.11011451,58837.0,58836.0,0.27]
[1617688864633,6.11011451,58837.0,58836.0,0.27]
[1617688867937,6.31011451,58837.0,58836.0,0.27]
[1617688868535,6.87230542,58837.0,58836.0,0.27]
[1617688868935,6.87230542,58837.0,58836.0,0.2649]
[1617688872842,8.37230542,58837.0,58836.0,0.2649]
[1617688873241,8.91891928,58837.0,58836.0,0.2649]
[1617688873542,8.91891928,58837.0,58836.0,0.1885]
[1617688874141,8.91891928,58837.0,58836.0,0.18749604]
[1617688877645,7.91891928,58837.0,58836.0,0.18749604]
[1617688877844,8.91891928,58837.0,58836.0,0.18749604]
[1617688881148,8.71891928,58837.0,58836.0,0.18749604]
[1617688882150,7.21891928,58837.0,58836.0,0.18749604]
[1617688883052,6.11011451,58837.0,58836.0,0.18749604]
[1617688883354,6.16171451,58837.0,58836.0,0.18749604]
[1617688883552,6.67234947,58837.0,58836.0,0.18749604]
[1617688883753,5.67234947,58837.0,58836.0,0.18749604]
[1617688883956,6.65650609,58837.0,58836.0,0.18749604]
[1617688884255,6.11011451,58837.0,58836.0,0.18749604]
[1617688885556,6.65644884,58837.0,58836.0,0.18749604]
[1617688885981,6.85644884,58837.0,58836.0,0.18649199]
[1617688886162,8.35644884,58837.0,58836.0,0.18649199]
[1617688886763,8.91872182,58837.0,58836.0,0.18649199]
[1617688892167,8.91872182,58837.0,58836.0,0.16829199]
[1617688894969,8.71872182,58837.0,58836.0,0.16829199]
[1617688895570,7.71872182,58837.0,58836.0,0.16829199]
[1617688895769,8.71872182,58837.0,58836.0,0.15979199]
[1617688896868,8.71872182,58837.0,58836.0,0.15878791]
[1617688902076,8.71872182,58837.0,58836.0,0.15078791]
[1617688902376,10.20813876,58837.0,58836.0,0.15078791]
[1617688902575,10.40813876,58837.0,58836.0,0.15078791]
[1617688902775,15.40813876,58837.0,58836.0,0.15078791]
[1617688903175,10.40813876,58837.0,58836.0,0.15078791]
[1617688903576,15.40813876,58837.0,58836.0,0.15078791]
[1617688905777,9.40813876,58837.0,58836.0,0.15078791]
[1617688906078,15.40813876,58837.0,58836.0,0.15078791]
[1617688906477,14.6048718,58837.0,58836.0,0.15078791]
[1617688906891,15.40816028,58837.0,58836.0,0.15078791]
[1617688907178,15.40816028,58837.0,58836.0,0.1497838]
[1617688910187,9.40816028,58837.0,58836.0,0.1497838]
[1617688910399,12.57256028,58837.0,58815.0,0.4729]
[1617688910813,12.57256028,58837.0,58816.0,0.27]
[1617688911101,2.76932,58817.0,58816.0,0.27]
[1617688911287,3.76932,58817.0,58816.0,0.27]
[1617688911487,6.83679704,58817.0,58816.0,0.27]
[1617688911686,6.94405359,58817.0,58816.0,0.27]
[1617688911887,7.5465461,58817.0,58816.0,0.27]
[1617688912086,7.5465461,58817.0,58810.0,0.27]
[1617688912288,5.46259476,58817.0,58809.0,0.27]
[1617688912689,5.46259476,58817.0,58806.0,0.27]
[1617688912690,4.23060197,58810.0,58806.0,0.27]
[1617688912888,4.23060197,58810.0,58805.0,0.27]
[1617688913289,1.0771162,58807.0,58804.0,0.27]
[1617688913792,0.10725655,58804.0,58803.0,0.30048323]
[1617688913990,0.25218655,58804.0,58803.0,0.30048323]
[1617688914192,0.25218655,58804.0,58803.0,0.57048323]
[1617688914590,1.25218655,58804.0,58803.0,0.57048323]
[1617688914891,2.57074476,58804.0,58803.0,0.57048323]
[1617688916193,2.13974754,58804.0,58803.0,0.27]
[1617688920295,2.5701153,58804.0,58803.0,0.27]
[1617688922096,1.5701153,58804.0,58803.0,0.27]
[1617688922396,2.5701153,58804.0,58803.0,0.27]
[1617688922697,3.05920226,58804.0,58803.0,0.27]
[1617688925905,1.49320275,58804.0,58803.0,0.27]
[1617688926303,1.85477901,58804.0,58803.0,0.27]
[1617688926602,1.25218655,58804.0,58803.0,0.27]
[1617688927206,2.75218655,58804.0,58803.0,0.27]
[1617688928006,2.99324883,58804.0,58803.0,0.27]
[1617688931613,3.54096764,58804.0,58803.0,0.27]
[1617688932014,3.54096764,58804.0,58803.0,0.26899549]
[1617688932616,3.54096764,58804.0,58803.0,0.25219549]
[1617688933016,3.54096764,58804.0,58803.0,0.22659549]
[1617688934319,3.59126764,58804.0,58803.0,0.22659549]
[1617688934520,8.59126764,58804.0,58803.0,0.22659549]
[1617688934718,3.54096764,58804.0,58803.0,0.22659549]
[1617688935129,4.46511673,58804.0,58803.0,0.22659549]
[1617688935325,3.46511673,58804.0,58803.0,0.22659549]
[1617688935620,2.99324883,58804.0,58803.0,0.22659549]
[1617688935820,3.35487071,58804.0,58803.0,0.22659549]
[1617688936118,3.40527071,58804.0,58803.0,0.22659549]
[1617688936320,3.04364883,58804.0,58803.0,0.22659549]
[1617688936619,8.04364883,58804.0,58803.0,0.26159549]
[1617688937220,8.96780486,58804.0,58803.0,0.26159549]
[1617688939024,3.96780486,58804.0,58803.0,0.26159549]
[1617688939824,3.04364883,58804.0,58803.0,0.26159549]
[1617688940425,2.99324883,58804.0,58803.0,0.26159549]
[1617688942328,3.91742974,58804.0,58803.0,0.26159549]
[1617688942533,3.96762974,58804.0,58803.0,0.26059095]
[1617688943527,3.91742974,58804.0,58803.0,0.26059095]
[1617688944228,2.99324883,58804.0,58803.0,0.26059095]
[1617688944637,3.35489141,58804.0,58803.0,0.26059095]
[1617688945030,2.99324883,58804.0,58803.0,0.26059095]
[1617688945430,3.04364883,58804.0,58803.0,0.26059095]
[1617688945932,3.96786536,58804.0,58803.0,0.26059095]
[1617688947536,3.04364883,58804.0,58803.0,0.26059095]
[1617688947737,2.99324883,58804.0,58803.0,0.24169095]
[1617688948238,2.99324883,58804.0,58803.0,0.23779095]
[1617688948436,2.99324883,58804.0,58803.0,0.22759095]
[1617688950939,2.99324883,58804.0,58803.0,0.19299095]
[1617688952440,2.99324883,58804.0,58803.0,0.19198635]
[1617688954543,1.49324883,58804.0,58803.0,0.19198635]
[1617688955142,1.25218655,58804.0,58803.0,0.19198635]
[1617688955344,1.25218655,58804.0,58803.0,0.17428635]
[1617688958043,2.75218655,58804.0,58803.0,0.17428635]
[1617688958545,2.99329875,58804.0,58803.0,0.09908635]
[1617688962554,2.99329875,58804.0,58803.0,0.09808172]
[1617688963354,3.53862731,58804.0,58803.0,0.09808172]
[1617688966858,3.53862731,58804.0,58803.0,0.09448172]
[1617688969759,2.03862731,58804.0,58803.0,0.09448172]
[1617688970163,1.79751511,58804.0,58803.0,0.09448172]
[1617688970660,3.29751511,58804.0,58803.0,0.09448172]
[1617688971260,3.53863279,58804.0,58803.0,0.09448172]
[1617688971561,3.53863279,58804.0,58803.0,0.09178172]
[1617688973361,2.53863279,58804.0,58803.0,0.09077707]
[1617688973563,2.03863279,58804.0,58803.0,0.09077707]
[1617688974373,1.79751511,58804.0,58803.0,0.09077707]
[1617688975963,6.66648786,58804.0,58803.0,0.09077707]
[1617688976363,4.58629359,58804.0,58803.0,0.06537707]
[1617688976663,4.63739359,58804.0,58803.0,0.06537707]
[1617688976863,4.22461015,58804.0,58803.0,0.06537707]
[1617688977764,4.27501015,58804.0,58803.0,7.707e-05]
[1617688977965,9.27501015,58804.0,58803.0,7.707e-05]
[1617688978366,11.11326693,58804.0,58772.0,0.30105782]
[1617688978564,2.862,58784.0,58772.0,0.30105782]
[1617688978765,2.862,58784.0,58773.0,0.37106204]
[1617688978766,2.98652,58784.0,58773.0,0.37106204]
[1617688979075,0.5477925,58782.0,58774.0,0.27]
[1617688979766,1.56598117,58775.0,58774.0,0.57107133]
[1617688979964,1.07663652,58775.0,58774.0,0.27]
[1617688980164,1.18389307,58775.0,58774.0,0.27]
[1617688980464,2.18389307,58775.0,58774.0,0.27]
[1617688981065,2.42504429,58775.0,58774.0,0.27]
[1617688982066,2.42504429,58775.0,58773.0,0.07]
[1617688982266,2.42504429,58775.0,58774.0,0.27]
[1617688984293,1.42504429,58775.0,58774.0,0.27]
[1617688986371,4.67084429,58775.0,58774.0,0.27]
[1617688986872,6.03256728,58775.0,58774.0,0.27]
[1617688987774,2.78676728,58775.0,58774.0,0.27]
[1617688988275,2.42504429,58775.0,58774.0,0.27]
[1617688988474,1.42504429,58775.0,58774.0,0.27]
[1617688989775,4.64014429,58775.0,58774.0,0.27]
[1617688990476,6.00188132,58775.0,58774.0,0.27]
[1617688991675,6.48944922,58775.0,58774.0,0.27]
[1617688992678,3.37694922,58775.0,58774.0,0.27]
[1617688992878,2.37694922,58775.0,58774.0,0.27]
[1617688993079,1.78678132,58775.0,58774.0,0.27]
[1617688993480,1.42504429,58775.0,58774.0,0.27]
[1617688994082,0.34840777,58775.0,58774.0,0.27]
[1617688994281,1.78288439,58775.0,58774.0,0.27]
[1617688994782,1.42113589,58775.0,58774.0,0.27]
[1617688996886,1.90867898,58775.0,58774.0,0.27]
[1617688997487,1.66752776,58775.0,58774.0,0.27]
[1617688997800,1.42113927,58775.0,58774.0,0.27]
[1617688998188,1.53424927,58775.0,58774.0,0.27]
[1617688999189,2.02140791,58775.0,58774.0,0.27]
[1617689000288,5.64080791,58775.0,58774.0,0.27]
[1617689000790,6.00255435,58775.0,58774.0,0.27]
[1617689004196,5.51539571,58775.0,58774.0,0.27]
[1617689004499,6.00268339,58775.0,58774.0,0.27]
[1617689005193,7.00268339,58775.0,58774.0,0.27]
[1617689006595,6.00268339,58775.0,58774.0,0.27]
[1617689013001,5.51539571,58775.0,58774.0,0.27]
[1617689013403,6.00248412,58775.0,58774.0,0.27]
[1617689016007,2.38308412,58775.0,58774.0,0.38537]
[1617689016213,2.26997412,58775.0,58774.0,0.38537]
[1617689016609,1.90822768,58775.0,58774.0,0.38537]
[1617689017011,0.10725655,58775.0,58774.0,0.38537]
[1617689017413,1.66747183,58775.0,58774.0,0.38537]
[1617689017611,1.66747183,58775.0,58774.0,0.27]
[1617689018212,5.23587183,58775.0,58774.0,0.27]
[1617689018413,5.4770375,58775.0,58774.0,0.27]
[1617689018714,5.83878503,58775.0,58774.0,0.27]
[1617689019115,5.35124213,58775.0,58774.0,0.27]
[1617689019918,5.83928818,58775.0,58774.0,0.27]
[1617689021518,6.83928818,58775.0,58774.0,0.27]
[1617689029034,6.83928818,58775.0,58770.0,0.27]
[1617689029434,1.56349,58771.0,58770.0,0.27]
[1617689029934,1.49349,58771.0,58770.0,0.27]
[1617689031838,5.03909,58771.0,58770.0,0.27]
[1617689032338,5.64200716,58771.0,58770.0,0.27]
[1617689036445,5.15344096,58771.0,58770.0,0.57103118]
[1617689036843,5.15344096,58771.0,58770.0,0.30103118]
[1617689037244,5.15344096,58771.0,58770.0,0.57103118]
[1617689038347,5.64220421,58771.0,58770.0,0.57103118]
[1617689038745,5.15344096,58771.0,58770.0,0.57103118]
[1617689039245,5.6422384,58771.0,58770.0,0.57103118]
[1617689040047,5.15344096,58771.0,58770.0,0.57103118]
[1617689040547,5.64253003,58771.0,58770.0,0.57103118]
[1617689042152,5.64253003,58771.0,58770.0,0.27]
[1617689042549,5.64253003,58771.0,58769.0,0.30105589]
[1617689042949,4.03468907,58771.0,58770.0,0.27]
[1617689043351,4.75815535,58771.0,58770.0,0.27]
[1617689044560,4.75815535,58771.0,58768.0,0.30107259]
[1617689044850,4.75815535,58771.0,58769.0,0.27]
[1617689045049,1.09159659,58770.0,58769.0,0.27]
[1617689045282,1.09159659,58770.0,58768.0,0.30107259]
[1617689045550,1.81549814,58770.0,58769.0,0.57141071]
[1617689046052,1.81549814,58770.0,58769.0,0.30141071]
[1617689046251,1.81549814,58770.0,58769.0,0.57141071]
[1617689051259,2.3782798,58770.0,58769.0,0.57141071]
[1617689051656,1.81549814,58770.0,58769.0,0.27]
[1617689052056,1.81549814,58770.0,58768.0,0.30141899]
[1617689052458,1.81549814,58770.0,58769.0,0.27]
[1617689052658,0.60296293,58770.0,58769.0,0.27]
[1617689052858,1.60296293,58770.0,58769.0,0.27]
[1617689053061,2.81593941,58770.0,58769.0,0.27]
[1617689053559,3.37872643,58770.0,58769.0,0.27]
[1617689053761,2.37872643,58770.0,58769.0,0.27]
[1617689054560,1.81593941,58770.0,58769.0,0.27]
[1617689054960,2.37872733,58770.0,58769.0,0.27]
[1617689055260,2.16806966,58770.0,58769.0,0.27]
[1617689056263,2.73085648,58770.0,58769.0,0.27]
[1617689056662,2.16806966,58770.0,58769.0,0.27]
[1617689057764,2.16806966,58770.0,58766.0,0.30120597]
[1617689057963,2.12789122,58770.0,58766.0,0.57120597]
[1617689058163,2.12789122,58770.0,58766.0,0.30120597]
[1617689058563,0.10725655,58768.0,58767.0,0.27]
[1617689059364,1.91200495,58768.0,58767.0,0.27]
[1617689062168,1.91200495,58768.0,58767.0,0.57120641]
[1617689062568,1.91200495,58768.0,58766.0,0.30120731]
[1617689062969,1.91200495,58768.0,58767.0,0.27]
[1617689063170,0.10725655,58768.0,58767.0,0.27]
[1617689063571,2.03306226,58768.0,58767.0,0.27]
[1617689063872,1.6712535,58768.0,58767.0,0.27]
[1617689064472,1.91246015,58768.0,58767.0,0.27]
[1617689064673,1.6712535,58768.0,58767.0,0.27]
[1617689065074,1.91245956,58768.0,58767.0,0.27]
[1617689066476,2.91245956,58768.0,58767.0,0.27]
[1617689067576,1.7003717,58768.0,58767.0,0.27]
[1617689067977,3.27398991,58768.0,58767.0,0.27]
[1617689068377,2.67097041,58768.0,58767.0,0.27]
[1617689068780,3.27399441,58768.0,58765.0,0.30118341]
[1617689069281,0.24121019,58767.0,58766.0,0.27]
[1617689069478,0.24121019,58767.0,58764.0,0.30109158]
[1617689069678,1.80373201,58767.0,58765.0,0.27]
[1617689070078,1.56250648,58766.0,58764.0,0.30109158]
[1617689070281,2.56250648,58766.0,58765.0,0.27]
[1617689070481,1.0,58766.0,58765.0,0.27]
[1617689070781,1.0,58766.0,58763.0,0.30109459]
[1617689070981,2.80363017,58766.0,58764.0,0.01]
[1617689071382,1.80379787,58765.0,58764.0,0.01]
[1617689071886,1.31551496,58765.0,58764.0,0.31109402]
[1617689072284,1.31551496,58765.0,58764.0,0.30109402]
[1617689072584,1.31551496,58765.0,58764.0,0.57109402]
[1617689072784,1.07430051,58765.0,58764.0,0.57109402]
[1617689073484,0.24121166,58767.0,58764.0,0.57109402]
[1617689073684,1.67767576,58765.0,58764.0,0.57109402]
[1617689074185,1.07464819,58765.0,58764.0,0.57109402]
[1617689076590,4.34984819,58765.0,58764.0,0.57109402]
[1617689077290,4.34984819,58765.0,58764.0,0.27]
[1617689077291,5.44118896,58765.0,58764.0,0.27]
[1617689077790,5.44118896,58765.0,58763.0,0.57109416]
[1617689078091,3.76349073,58765.0,58764.0,0.27]
[1617689078590,4.83777232,58765.0,58764.0,0.27]
[1617689080491,4.83777232,58765.0,58762.0,0.77974454]
[1617689080693,4.83777232,58765.0,58763.0,0.27]
[1617689081092,1.67702703,58764.0,58763.0,0.27]
[1617689081592,1.67702703,58764.0,58763.0,0.57104295]
[1617689084092,2.16512676,58764.0,58763.0,0.27]
[1617689084292,0.60303725,58764.0,58763.0,0.27]
[1617689084593,2.16508549,58764.0,58763.0,0.27]
[1617689085494,1.81361488,58764.0,58763.0,0.27]
[1617689085702,0.95453834,58764.0,58763.0,0.27]
[1617689086095,1.67705201,58764.0,58763.0,0.27]
[1617689087497,5.12705201,58764.0,58763.0,0.27]
[1617689087697,5.0120686,58764.0,58763.0,0.27]
[1617689088098,5.61511536,58764.0,58763.0,0.27]
[1617689089501,6.61511536,58764.0,58763.0,0.27]
[1617689091407,5.61511536,58764.0,58763.0,0.27]
[1617689091606,6.61511536,58764.0,58763.0,0.27]
[1617689093012,5.61511536,58764.0,58763.0,0.27]
[1617689093210,4.93805384,58764.0,58763.0,0.27]
[1617689093410,6.01134409,58764.0,58763.0,0.27]
[1617689097517,6.01134409,58764.0,58763.0,0.2514]
[1617689097715,6.01134409,58764.0,58763.0,0.2361]
[1617689098317,5.01134409,58764.0,58763.0,0.2361]
[1617689098618,6.01134409,58764.0,58763.0,0.2361]